[Event "Titled Tuesday Blitz November 29 Early 2022"]
[White "Pakleza, Zbigniew"]
[Black "Jiganchine, Roman"]
[WhiteFideId "1119290"]
[BlackFideId "2603667"]
[WhiteElo "2411"]
[BlackElo "2317"]
[Result "1-0"]
[Round "07"]
[TimeControl "180+1"]
[Date "2022.11.30"]
[WhiteClock "0:00:26"]
[BlackClock "0:00:04"]

1. d4 {[%clk 0:03:00]}  d5 {[%clk 0:02:50]} 2. Bf4 {[%clk 0:03:00]}  Nf6 {[%clk 0:02:49]} 3. e3 {[%clk 0:03:00]}  e6 {[%clk 0:02:49]} 4. Nd2 {[%clk 0:03:00]}  c5 {[%clk 0:02:49]} 5. c3 {[%clk 0:03:00]}  Nc6 {[%clk 0:02:48]} 6. Ngf3 {[%clk 0:03:00]}  Bd6 {[%clk 0:02:48]} 7. Bg3 {[%clk 0:03:00]}  O-O {[%clk 0:02:46]} 8. Bd3 {[%clk 0:03:01]}  Qe7 {[%clk 0:02:45]} 9. Ne5 {[%clk 0:03:01]}  Nd7 {[%clk 0:02:41]} 10. Nxd7 {[%clk 0:03:01]}  Qxd7 {[%clk 0:02:41]} 11. Qh5 {[%clk 0:02:55]}  g6 {[%clk 0:02:35]} 12. Qh6 {[%clk 0:02:55]}  e5 {[%clk 0:02:26]} 13. Nf3 {[%clk 0:02:37]}  f6 {[%clk 0:02:04]} 14. dxe5 {[%clk 0:02:29]}  Nxe5 {[%clk 0:01:44]} 15. Nxe5 {[%clk 0:02:29]}  fxe5 {[%clk 0:01:38]} 16. O-O-O {[%clk 0:02:25]}  Qg7 {[%clk 0:01:30]} 17. Qxg7+ {[%clk 0:02:15]}  Kxg7 {[%clk 0:01:29]} 18. Be4 {[%clk 0:01:55]}  d4 {[%clk 0:00:49]} 19. exd4 {[%clk 0:01:35]}  cxd4 {[%clk 0:00:46]} 20. cxd4 {[%clk 0:01:34]}  Bf5 {[%clk 0:00:30]} 21. Rhe1 {[%clk 0:01:25]}  Bb4 {[%clk 0:00:20]} 22. Bxe5+ {[%clk 0:01:19]}  Kh6 {[%clk 0:00:17]} 23. Re2 {[%clk 0:01:00]}  Rac8+ {[%clk 0:00:15]} 24. Kb1 {[%clk 0:00:56]}  Bxe4+ {[%clk 0:00:11]} 25. Rxe4 {[%clk 0:00:57]}  Rxf2 {[%clk 0:00:11]} 26. Rh4+ {[%clk 0:00:52]}  Kg5 {[%clk 0:00:10]} 27. Rxh7 {[%clk 0:00:53]}  Rcc2 {[%clk 0:00:08]} 28. d5 {[%clk 0:00:48]}  Bd6 {[%clk 0:00:07]} 29. Bd4 {[%clk 0:00:37]}  Rxg2 {[%clk 0:00:06]} 30. h4+ {[%clk 0:00:38]}  Kg4 {[%clk 0:00:06]} 31. Rxb7 {[%clk 0:00:28]}  a5 {[%clk 0:00:05]} 32. Rb6 {[%clk 0:00:26]}  Bc5 {[%clk 0:00:04]} 33. Rxg6+ {[%clk 0:00:25]}  Kh5 {[%clk 0:00:04]} 34. Rxg2 {[%clk 0:00:26]} 1-0


[Site "https://www.chess.com"]

[Event "Titled Tuesday Blitz November 29 Early 2022"]
[White "Papasimakopoulos, Alexandros"]
[Black "Ibarra Jerez, Jose Carlos"]
[WhiteFideId "4244125"]
[BlackFideId "2226332"]
[WhiteElo "2365"]
[BlackElo "2638"]
[Result "0-1"]
[Round "07"]
[TimeControl "180+1"]
[Date "2022.11.30"]
[WhiteClock "0:00:10"]
[BlackClock "0:00:48"]

1. d4 {[%clk 0:02:34]}  Nf6 {[%clk 0:02:57]} 2. c4 {[%clk 0:02:34]}  e6 {[%clk 0:02:58]} 3. Nc3 {[%clk 0:02:34]}  Bb4 {[%clk 0:02:57]} 4. Qc2 {[%clk 0:02:34]}  d5 {[%clk 0:02:56]} 5. cxd5 {[%clk 0:02:34]}  Qxd5 {[%clk 0:02:57]} 6. Nf3 {[%clk 0:02:34]}  Qf5 {[%clk 0:02:57]} 7. Qxf5 {[%clk 0:02:34]}  exf5 {[%clk 0:02:57]} 8. a3 {[%clk 0:02:35]}  Bd6 {[%clk 0:02:57]} 9. Nb5 {[%clk 0:02:35]}  Be6 {[%clk 0:02:56]} 10. Nxd6+ {[%clk 0:02:33]}  cxd6 {[%clk 0:02:56]} 11. Bf4 {[%clk 0:02:33]}  Ke7 {[%clk 0:02:56]} 12. e3 {[%clk 0:02:33]}  Nbd7 {[%clk 0:02:56]} 13. Nd2 {[%clk 0:02:33]}  Nb6 {[%clk 0:02:55]} 14. Bd3 {[%clk 0:02:29]}  Rac8 {[%clk 0:02:44]} 15. h4 {[%clk 0:02:26]}  Na4 {[%clk 0:02:43]} 16. b3 {[%clk 0:02:11]}  Nb2 {[%clk 0:02:27]} 17. Bc4 {[%clk 0:01:44]}  Nxc4 {[%clk 0:02:15]} 18. bxc4 {[%clk 0:01:44]}  Bxc4 {[%clk 0:02:15]} 19. Nxc4 {[%clk 0:01:44]}  Rxc4 {[%clk 0:02:15]} 20. Bg5 {[%clk 0:01:44]}  Rhc8 {[%clk 0:02:14]} 21. O-O {[%clk 0:01:43]}  Ke6 {[%clk 0:02:14]} 22. Bxf6 {[%clk 0:01:43]}  Kxf6 {[%clk 0:02:14]} 23. Rfb1 {[%clk 0:01:43]}  b6 {[%clk 0:02:14]} 24. a4 {[%clk 0:01:44]}  f4 {[%clk 0:02:11]} 25. exf4 {[%clk 0:01:36]}  Rxd4 {[%clk 0:02:11]} 26. a5 {[%clk 0:01:36]}  bxa5 {[%clk 0:02:01]} 27. Rxa5 {[%clk 0:01:13]}  Rxf4 {[%clk 0:02:00]} 28. g3 {[%clk 0:01:13]}  Rf5 {[%clk 0:01:54]} 29. Rxa7 {[%clk 0:01:12]}  Rc2 {[%clk 0:01:54]} 30. Rf1 {[%clk 0:00:32]}  Rd5 {[%clk 0:01:54]} 31. Ra3 {[%clk 0:00:29]}  h5 {[%clk 0:01:45]} 32. Rf3+ {[%clk 0:00:29]}  Rf5 {[%clk 0:01:46]} 33. Rxf5+ {[%clk 0:00:25]}  Kxf5 {[%clk 0:01:46]} 34. Rd1 {[%clk 0:00:25]}  Ke5 {[%clk 0:01:46]} 35. Re1+ {[%clk 0:00:26]}  Kf6 {[%clk 0:01:47]} 36. Rd1 {[%clk 0:00:26]}  Ke6 {[%clk 0:01:45]} 37. Re1+ {[%clk 0:00:27]}  Kd7 {[%clk 0:01:46]} 38. Kg2 {[%clk 0:00:25]}  Rc5 {[%clk 0:01:45]} 39. Kf3 {[%clk 0:00:24]}  Re5 {[%clk 0:01:45]} 40. Ra1 {[%clk 0:00:23]}  g6 {[%clk 0:01:44]} 41. Ra7+ {[%clk 0:00:23]}  Ke6 {[%clk 0:01:45]} 42. Ra6 {[%clk 0:00:24]}  Re1 {[%clk 0:01:43]} 43. Rb6 {[%clk 0:00:23]}  Ke5 {[%clk 0:01:42]} 44. Rb7 {[%clk 0:00:23]}  Kf6 {[%clk 0:01:40]} 45. Rb6 {[%clk 0:00:23]}  Re6 {[%clk 0:01:40]} 46. Ra6 {[%clk 0:00:23]}  Ke5 {[%clk 0:01:40]} 47. Ke3 {[%clk 0:00:22]}  Kf5+ {[%clk 0:01:39]} 48. Kf3 {[%clk 0:00:22]}  Ke5 {[%clk 0:01:40]} 49. Ke3 {[%clk 0:00:22]}  d5 {[%clk 0:01:37]} 50. Ra7 {[%clk 0:00:21]}  f6 {[%clk 0:01:34]} 51. Rd7 {[%clk 0:00:17]}  Ra6 {[%clk 0:01:29]} 52. Re7+ {[%clk 0:00:15]}  Kf5 {[%clk 0:01:29]} 53. Rd7 {[%clk 0:00:14]}  Ra3+ {[%clk 0:01:29]} 54. Ke2 {[%clk 0:00:15]}  Ke4 {[%clk 0:01:26]} 55. Re7+ {[%clk 0:00:15]}  Kf5 {[%clk 0:01:27]} 56. Rd7 {[%clk 0:00:15]}  Ke6 {[%clk 0:01:27]} 57. Rg7 {[%clk 0:00:15]}  Ra2+ {[%clk 0:01:25]} 58. Ke3 {[%clk 0:00:15]}  Kf5 {[%clk 0:01:26]} 59. Rd7 {[%clk 0:00:15]}  Ra5 {[%clk 0:01:23]} 60. Rd8 {[%clk 0:00:14]}  Rb5 {[%clk 0:01:18]} 61. Rd6 {[%clk 0:00:13]}  Rb3+ {[%clk 0:01:15]} 62. Ke2 {[%clk 0:00:12]}  Ke5 {[%clk 0:01:14]} 63. Rd7 {[%clk 0:00:12]}  d4 {[%clk 0:01:15]} 64. Re7+ {[%clk 0:00:11]}  Kf5 {[%clk 0:01:15]} 65. Rd7 {[%clk 0:00:11]}  Ke4 {[%clk 0:01:16]} 66. Re7+ {[%clk 0:00:11]}  Kf5 {[%clk 0:01:15]} 67. Rd7 {[%clk 0:00:11]}  Rb2+ {[%clk 0:01:14]} 68. Kf3 {[%clk 0:00:11]}  Rd2 {[%clk 0:01:14]} 69. Rd8 {[%clk 0:00:08]}  Ke6 {[%clk 0:01:10]} 70. Rg8 {[%clk 0:00:08]}  Kf5 {[%clk 0:01:03]} 71. Rd8 {[%clk 0:00:09]}  d3 {[%clk 0:01:00]} 72. Ke3 {[%clk 0:00:04]}  Rd1 {[%clk 0:01:00]} 73. Rxd3 {[%clk 0:00:04]}  Rxd3+ {[%clk 0:00:54]} 74. Kxd3 {[%clk 0:00:05]}  Kg4 {[%clk 0:00:54]} 75. Ke3 {[%clk 0:00:05]}  f5 {[%clk 0:00:52]} 76. Ke2 {[%clk 0:00:03]}  f4 {[%clk 0:00:51]} 77. gxf4 {[%clk 0:00:03]}  Kxf4 {[%clk 0:00:51]} 78. Kf1 {[%clk 0:00:03]}  Kg4 {[%clk 0:00:49]} 79. Kg2 {[%clk 0:00:04]}  Kxh4 {[%clk 0:00:49]} 80. f3 {[%clk 0:00:04]}  Kg5 {[%clk 0:00:49]} 81. Kg3 {[%clk 0:00:02]}  Kf5 {[%clk 0:00:48]} 82. f4 {[%clk 0:00:02]}  Ke4 {[%clk 0:00:48]} 83. Kh4 {[%clk 0:00:02]}  Kxf4 {[%clk 0:00:48]} 84. Kh3 {[%clk 0:00:03]}  g5 {[%clk 0:00:48]} 85. Kg2 {[%clk 0:00:03]}  g4 {[%clk 0:00:48]} 86. Kh2 {[%clk 0:00:04]}  h4 {[%clk 0:00:48]} 87. Kg1 {[%clk 0:00:05]}  Kg3 {[%clk 0:00:48]} 88. Kh1 {[%clk 0:00:06]}  h3 {[%clk 0:00:48]} 89. Kg1 {[%clk 0:00:07]}  Kf3 {[%clk 0:00:47]} 90. Kh1 {[%clk 0:00:08]}  Kf2 {[%clk 0:00:47]} 91. Kh2 {[%clk 0:00:08]}  g3+ {[%clk 0:00:47]} 92. Kxh3 {[%clk 0:00:08]}  g2 {[%clk 0:00:48]} 93. Kh2 {[%clk 0:00:09]}  g1=Q+ {[%clk 0:00:48]} 94. Kh3 {[%clk 0:00:10]}  Qg3# {[%clk 0:00:48]} 0-1


[Site "https://www.chess.com"]

[Event "Titled Tuesday Blitz November 29 Early 2022"]
[White "Radjabov, Teimour"]
[Black "Bethke, Richard"]
[WhiteFideId "13400924"]
[BlackFideId "12959243"]
[WhiteElo "2709"]
[BlackElo "2369"]
[Result "1-0"]
[Round "07"]
[TimeControl "180+1"]
[Date "2022.11.30"]
[WhiteClock "0:00:04"]
[BlackClock "0:00:03"]

1. d4 {[%clk 0:02:58]}  Nf6 {[%clk 0:02:59]} 2. c4 {[%clk 0:02:59]}  e6 {[%clk 0:02:59]} 3. Nf3 {[%clk 0:02:59]}  b6 {[%clk 0:02:58]} 4. a3 {[%clk 0:02:58]}  Ba6 {[%clk 0:02:57]} 5. Nc3 {[%clk 0:02:59]}  Bxc4 {[%clk 0:02:56]} 6. g3 {[%clk 0:02:59]}  Be7 {[%clk 0:02:53]} 7. Bg2 {[%clk 0:02:59]}  d5 {[%clk 0:02:54]} 8. Qa4+ {[%clk 0:02:57]}  Qd7 {[%clk 0:02:52]} 9. Qc2 {[%clk 0:02:57]}  Nc6 {[%clk 0:02:42]} 10. O-O {[%clk 0:02:51]}  O-O {[%clk 0:02:41]} 11. Bf4 {[%clk 0:02:51]}  Bd6 {[%clk 0:02:39]} 12. Bg5 {[%clk 0:02:40]}  Be7 {[%clk 0:02:38]} 13. Rfc1 {[%clk 0:02:38]}  h6 {[%clk 0:02:29]} 14. Bf4 {[%clk 0:02:38]}  Bd6 {[%clk 0:02:22]} 15. b3 {[%clk 0:02:14]}  Ba6 {[%clk 0:02:19]} 16. b4 {[%clk 0:02:14]}  Bc4 {[%clk 0:01:50]} 17. Qd2 {[%clk 0:01:31]}  a5 {[%clk 0:01:36]} 18. b5 {[%clk 0:01:28]}  Ne7 {[%clk 0:01:35]} 19. Ne5 {[%clk 0:01:20]}  Bxe5 {[%clk 0:01:32]} 20. Bxe5 {[%clk 0:01:18]}  Ng4 {[%clk 0:01:30]} 21. Bf4 {[%clk 0:00:49]}  Ng6 {[%clk 0:01:29]} 22. a4 {[%clk 0:00:48]}  Rac8 {[%clk 0:01:15]} 23. Bf3 {[%clk 0:00:30]}  Nxf4 {[%clk 0:01:10]} 24. gxf4 {[%clk 0:00:30]}  Nf6 {[%clk 0:01:10]} 25. Kh1 {[%clk 0:00:31]}  c5 {[%clk 0:00:57]} 26. bxc6 {[%clk 0:00:31]}  Qxc6 {[%clk 0:00:57]} 27. Rg1 {[%clk 0:00:32]}  Ne4 {[%clk 0:00:52]} 28. Bxe4 {[%clk 0:00:23]}  dxe4 {[%clk 0:00:53]} 29. Qe3 {[%clk 0:00:23]}  Bd5 {[%clk 0:00:51]} 30. Rg3 {[%clk 0:00:20]}  f5 {[%clk 0:00:45]} 31. Nb5 {[%clk 0:00:16]}  Rf7 {[%clk 0:00:32]} 32. Rag1 {[%clk 0:00:16]}  Bc4 {[%clk 0:00:32]} 33. Nc3 {[%clk 0:00:12]}  Ba6 {[%clk 0:00:32]} 34. d5 {[%clk 0:00:10]}  exd5 {[%clk 0:00:31]} 35. Qd4 {[%clk 0:00:10]}  Rcc7 {[%clk 0:00:06]} 36. Nxd5 {[%clk 0:00:10]}  Rcd7 {[%clk 0:00:06]} 37. Qe5 {[%clk 0:00:04]}  Qxd5 {[%clk 0:00:02]} 38. Rxg7+ {[%clk 0:00:04]}  Kf8 {[%clk 0:00:03]} 39. Rg8# {[%clk 0:00:04]} 1-0


[Site "https://www.chess.com"]

[Event "Titled Tuesday Blitz November 29 Early 2022"]
[White "Reprintsev, Alexander"]
[Black "Jakubowski, Krzysztof"]
[WhiteFideId "14100541"]
[BlackFideId "1112848"]
[WhiteElo "2230"]
[BlackElo "2373"]
[Result "1/2-1/2"]
[Round "07"]
[TimeControl "180+1"]
[Date "2022.11.30"]
[WhiteClock "0:00:12"]
[BlackClock "0:00:12"]

1. e4 {[%clk 0:03:00]}  c5 {[%clk 0:02:59]} 2. b3 {[%clk 0:03:00]}  b6 {[%clk 0:02:54]} 3. d4 {[%clk 0:03:00]}  cxd4 {[%clk 0:02:53]} 4. Qxd4 {[%clk 0:03:00]}  Nc6 {[%clk 0:02:46]} 5. Qd2 {[%clk 0:03:00]}  Nf6 {[%clk 0:02:44]} 6. Nc3 {[%clk 0:02:59]}  e6 {[%clk 0:02:39]} 7. Bb2 {[%clk 0:02:59]}  Bb4 {[%clk 0:02:31]} 8. f3 {[%clk 0:02:59]}  O-O {[%clk 0:02:24]} 9. a3 {[%clk 0:02:58]}  Bc5 {[%clk 0:02:10]} 10. O-O-O {[%clk 0:02:58]}  Qe7 {[%clk 0:02:03]} 11. b4 {[%clk 0:02:53]}  Bxg1 {[%clk 0:01:50]} 12. Rxg1 {[%clk 0:02:52]}  Rd8 {[%clk 0:01:49]} 13. Qd6 {[%clk 0:02:24]}  Qxd6 {[%clk 0:01:29]} 14. Rxd6 {[%clk 0:02:23]}  Kf8 {[%clk 0:01:25]} 15. Bb5 {[%clk 0:02:20]}  Bb7 {[%clk 0:01:24]} 16. Rgd1 {[%clk 0:02:19]}  Ke7 {[%clk 0:01:23]} 17. f4 {[%clk 0:02:12]}  Rac8 {[%clk 0:01:13]} 18. e5 {[%clk 0:02:12]}  Ng4 {[%clk 0:01:06]} 19. h3 {[%clk 0:02:10]}  Ne3 {[%clk 0:01:03]} 20. R1d2 {[%clk 0:01:59]}  a6 {[%clk 0:00:47]} 21. Bd3 {[%clk 0:01:53]}  a5 {[%clk 0:00:37]} 22. b5 {[%clk 0:01:52]}  Na7 {[%clk 0:00:36]} 23. Rxb6 {[%clk 0:01:49]}  Rb8 {[%clk 0:00:28]} 24. a4 {[%clk 0:01:46]}  Nc8 {[%clk 0:00:25]} 25. Ba3+ {[%clk 0:01:45]}  Ke8 {[%clk 0:00:25]} 26. Rxb7 {[%clk 0:01:35]}  Rxb7 {[%clk 0:00:26]} 27. Ne4 {[%clk 0:01:35]}  f5 {[%clk 0:00:18]} 28. exf6 {[%clk 0:01:35]}  gxf6 {[%clk 0:00:18]} 29. Nxf6+ {[%clk 0:01:35]}  Kf7 {[%clk 0:00:18]} 30. Ne4 {[%clk 0:01:34]}  d5 {[%clk 0:00:17]} 31. Ng5+ {[%clk 0:01:34]}  Kg8 {[%clk 0:00:16]} 32. Nxe6 {[%clk 0:01:33]}  Re8 {[%clk 0:00:16]} 33. Nc5 {[%clk 0:01:33]}  Rc7 {[%clk 0:00:15]} 34. Re2 {[%clk 0:01:28]}  Kf7 {[%clk 0:00:15]} 35. Bxh7 {[%clk 0:01:22]}  Nb6 {[%clk 0:00:14]} 36. Bd3 {[%clk 0:01:16]}  Nbc4 {[%clk 0:00:14]} 37. Bxc4 {[%clk 0:01:09]}  Nxc4 {[%clk 0:00:15]} 38. Rxe8 {[%clk 0:01:09]}  Kxe8 {[%clk 0:00:16]} 39. Na6 {[%clk 0:01:07]}  Rg7 {[%clk 0:00:14]} 40. Bc5 {[%clk 0:01:00]}  Kd7 {[%clk 0:00:14]} 41. g4 {[%clk 0:00:59]}  Rh7 {[%clk 0:00:14]} 42. c3 {[%clk 0:00:54]}  Rxh3 {[%clk 0:00:14]} 43. Bd4 {[%clk 0:00:55]}  Rg3 {[%clk 0:00:14]} 44. g5 {[%clk 0:00:54]}  Rg2 {[%clk 0:00:15]} 45. Nc5+ {[%clk 0:00:52]}  Kc8 {[%clk 0:00:13]} 46. Nb3 {[%clk 0:00:30]}  Rg4 {[%clk 0:00:10]} 47. Nd2 {[%clk 0:00:22]}  Rxf4 {[%clk 0:00:08]} 48. Nxc4 {[%clk 0:00:21]}  dxc4 {[%clk 0:00:09]} 49. g6 {[%clk 0:00:22]}  Rg4 {[%clk 0:00:09]} 50. g7 {[%clk 0:00:22]}  Rg2 {[%clk 0:00:09]} 51. Kd1 {[%clk 0:00:22]}  Kd7 {[%clk 0:00:09]} 52. Ke1 {[%clk 0:00:22]}  Ke6 {[%clk 0:00:09]} 53. b6 {[%clk 0:00:21]}  Kf7 {[%clk 0:00:08]} 54. Be5 {[%clk 0:00:18]}  Rb2 {[%clk 0:00:09]} 55. Kd1 {[%clk 0:00:18]}  Rxb6 {[%clk 0:00:08]} 56. Kd2 {[%clk 0:00:17]}  Rb3 {[%clk 0:00:08]} 57. Bc7 {[%clk 0:00:16]}  Ra3 {[%clk 0:00:08]} 58. Bxa5 {[%clk 0:00:17]}  Rxa4 {[%clk 0:00:08]} 59. Bb4 {[%clk 0:00:16]}  Ra8 {[%clk 0:00:08]} 60. Bf8 {[%clk 0:00:14]}  Rd8+ {[%clk 0:00:08]} 61. Kc2 {[%clk 0:00:14]}  Rd3 {[%clk 0:00:09]} 62. Kb2 {[%clk 0:00:14]}  Rf3 {[%clk 0:00:09]} 63. Kc2 {[%clk 0:00:14]}  Rh3 {[%clk 0:00:09]} 64. Kb2 {[%clk 0:00:14]}  Rg3 {[%clk 0:00:09]} 65. Kc2 {[%clk 0:00:14]}  Ke6 {[%clk 0:00:10]} 66. Kb2 {[%clk 0:00:14]}  Kd5 {[%clk 0:00:10]} 67. Ka3 {[%clk 0:00:14]}  Ke4 {[%clk 0:00:10]} 68. Kb4 {[%clk 0:00:14]}  Kd3 {[%clk 0:00:10]} 69. Kc5 {[%clk 0:00:10]}  Kxc3 {[%clk 0:00:10]} 70. Kd5 {[%clk 0:00:11]}  Kd3 {[%clk 0:00:10]} 71. Ke6 {[%clk 0:00:12]}  c3 {[%clk 0:00:10]} 72. Kf7 {[%clk 0:00:12]}  c2 {[%clk 0:00:09]} 73. Ba3 {[%clk 0:00:13]}  Rf3+ {[%clk 0:00:10]} 74. Ke7 {[%clk 0:00:13]}  Re3+ {[%clk 0:00:10]} 75. Kf7 {[%clk 0:00:13]}  Rg3 {[%clk 0:00:11]} 76. g8=Q {[%clk 0:00:12]}  Rxg8 {[%clk 0:00:11]} 77. Kxg8 {[%clk 0:00:13]}  Kd2 {[%clk 0:00:12]} 78. Kf7 {[%clk 0:00:12]}  c1=Q {[%clk 0:00:12]} 79. Bxc1+ {[%clk 0:00:12]} 1/2-1/2


[Site "https://www.chess.com"]

[Event "Titled Tuesday Blitz November 29 Early 2022"]
[White "Rian, Kapriaga"]
[Black "Korkmaz, Necmettin"]
[WhiteFideId "7103263"]
[BlackFideId "6303285"]
[WhiteElo "2206"]
[BlackElo "2094"]
[Result "1-0"]
[Round "07"]
[TimeControl "180+1"]
[Date "2022.11.30"]
[WhiteClock "0:00:05"]
[BlackClock "0:00:58"]

1. d4 {[%clk 0:03:00]}  d5 {[%clk 0:02:59]} 2. Nf3 {[%clk 0:03:00]}  Nf6 {[%clk 0:02:59]} 3. Bf4 {[%clk 0:03:00]}  c5 {[%clk 0:02:59]} 4. e3 {[%clk 0:03:00]}  Nc6 {[%clk 0:02:59]} 5. Nbd2 {[%clk 0:02:59]}  Qb6 {[%clk 0:02:59]} 6. dxc5 {[%clk 0:02:58]}  Qxb2 {[%clk 0:02:59]} 7. Rb1 {[%clk 0:02:54]}  Qc3 {[%clk 0:02:59]} 8. Bb5 {[%clk 0:02:52]}  g6 {[%clk 0:02:59]} 9. O-O {[%clk 0:02:48]}  Bg7 {[%clk 0:02:59]} 10. Ne5 {[%clk 0:02:23]}  Bd7 {[%clk 0:02:51]} 11. Nxd7 {[%clk 0:02:16]}  Nxd7 {[%clk 0:02:50]} 12. Nb3 {[%clk 0:02:02]}  Nf6 {[%clk 0:02:18]} 13. Qd3 {[%clk 0:01:36]}  Qxd3 {[%clk 0:02:10]} 14. cxd3 {[%clk 0:01:35]}  O-O {[%clk 0:02:08]} 15. Bxc6 {[%clk 0:01:25]}  bxc6 {[%clk 0:02:08]} 16. Na5 {[%clk 0:01:17]}  Rfc8 {[%clk 0:02:08]} 17. Rb7 {[%clk 0:01:15]}  Nh5 {[%clk 0:02:00]} 18. Bc7 {[%clk 0:01:12]}  d4 {[%clk 0:01:29]} 19. e4 {[%clk 0:00:59]}  Nf6 {[%clk 0:01:27]} 20. Nxc6 {[%clk 0:00:53]}  Kf8 {[%clk 0:01:27]} 21. Nxa7 {[%clk 0:00:44]}  Re8 {[%clk 0:01:22]} 22. Bb6 {[%clk 0:00:32]}  Ng4 {[%clk 0:01:20]} 23. a4 {[%clk 0:00:21]}  Ne5 {[%clk 0:01:20]} 24. a5 {[%clk 0:00:21]}  Nxd3 {[%clk 0:01:20]} 25. Rd1 {[%clk 0:00:18]}  Nb2 {[%clk 0:01:19]} 26. Rb1 {[%clk 0:00:17]}  Nc4 {[%clk 0:01:19]} 27. c6 {[%clk 0:00:16]}  d3 {[%clk 0:01:18]} 28. Kf1 {[%clk 0:00:16]}  Bh6 {[%clk 0:01:12]} 29. Rd1 {[%clk 0:00:16]}  d2 {[%clk 0:01:12]} 30. Ke2 {[%clk 0:00:15]}  Nb2 {[%clk 0:01:12]} 31. c7 {[%clk 0:00:14]}  Nxd1 {[%clk 0:01:10]} 32. Kxd1 {[%clk 0:00:14]}  Bg5 {[%clk 0:01:07]} 33. g3 {[%clk 0:00:14]}  e5 {[%clk 0:01:06]} 34. h4 {[%clk 0:00:13]}  Bh6 {[%clk 0:01:06]} 35. Nb5 {[%clk 0:00:11]}  Rec8 {[%clk 0:01:03]} 36. Nd6 {[%clk 0:00:08]}  Ke7 {[%clk 0:01:02]} 37. Nxc8+ {[%clk 0:00:07]}  Rxc8 {[%clk 0:01:02]} 38. a6 {[%clk 0:00:08]}  Kd7 {[%clk 0:01:03]} 39. a7 {[%clk 0:00:07]}  f5 {[%clk 0:00:57]} 40. Rb8 {[%clk 0:00:07]}  fxe4 {[%clk 0:00:58]} 41. Rxc8 {[%clk 0:00:06]}  Kxc8 {[%clk 0:00:58]} 42. a8=Q+ {[%clk 0:00:05]}  Kd7 {[%clk 0:00:58]} 43. Qxe4 {[%clk 0:00:05]} 1-0


[Site "https://www.chess.com"]

[Event "Titled Tuesday Blitz November 29 Early 2022"]
[White "Roman, Rodrigo"]
[Black "Mohammed, Zozek Salah Mohammed"]
[WhiteFideId "3701220"]
[BlackFideId "4803361"]
[WhiteElo "1995"]
[BlackElo "2199"]
[Result "1-0"]
[Round "07"]
[TimeControl "180+1"]
[Date "2022.11.30"]
[WhiteClock "0:00:18"]
[BlackClock "0:00:05"]

1. e4 {[%clk 0:03:00]}  c5 {[%clk 0:02:58]} 2. Nf3 {[%clk 0:02:46]}  d6 {[%clk 0:02:58]} 3. d4 {[%clk 0:02:43]}  cxd4 {[%clk 0:02:58]} 4. Nxd4 {[%clk 0:02:43]}  Nf6 {[%clk 0:02:58]} 5. Nc3 {[%clk 0:02:38]}  a6 {[%clk 0:02:58]} 6. Bg5 {[%clk 0:02:38]}  e6 {[%clk 0:02:57]} 7. f4 {[%clk 0:02:38]}  Be7 {[%clk 0:02:53]} 8. Qf3 {[%clk 0:02:37]}  O-O {[%clk 0:02:46]} 9. O-O-O {[%clk 0:02:34]}  Qc7 {[%clk 0:02:42]} 10. Bd3 {[%clk 0:02:33]}  Nc6 {[%clk 0:02:42]} 11. Nxc6 {[%clk 0:02:32]}  bxc6 {[%clk 0:02:41]} 12. g4 {[%clk 0:02:32]}  Rb8 {[%clk 0:02:32]} 13. e5 {[%clk 0:02:17]}  dxe5 {[%clk 0:02:25]} 14. fxe5 {[%clk 0:02:18]}  Nd5 {[%clk 0:02:24]} 15. Bxe7 {[%clk 0:02:09]}  Qxe7 {[%clk 0:02:21]} 16. Qh3 {[%clk 0:01:57]}  g6 {[%clk 0:02:17]} 17. Ne4 {[%clk 0:01:52]}  Qc7 {[%clk 0:02:03]} 18. Ng5 {[%clk 0:01:41]}  f6 {[%clk 0:02:02]} 19. Nf3 {[%clk 0:01:31]}  fxe5 {[%clk 0:01:48]} 20. Ng5 {[%clk 0:01:30]}  c5 {[%clk 0:01:25]} 21. Bc4 {[%clk 0:01:21]}  Qe7 {[%clk 0:01:12]} 22. Ne4 {[%clk 0:01:17]}  Rf4 {[%clk 0:01:08]} 23. Rhe1 {[%clk 0:01:16]}  Bb7 {[%clk 0:01:01]} 24. g5 {[%clk 0:01:10]}  Rbf8 {[%clk 0:00:54]} 25. Bxd5 {[%clk 0:01:01]}  exd5 {[%clk 0:00:53]} 26. Nf6+ {[%clk 0:01:02]}  R4xf6 {[%clk 0:00:50]} 27. gxf6 {[%clk 0:01:02]}  Qxf6 {[%clk 0:00:50]} 28. Qc3 {[%clk 0:00:59]}  e4 {[%clk 0:00:35]} 29. Qxc5 {[%clk 0:00:58]}  Qf4+ {[%clk 0:00:29]} 30. Rd2 {[%clk 0:00:57]}  Rf7 {[%clk 0:00:21]} 31. Qd4 {[%clk 0:00:36]}  Bc6 {[%clk 0:00:19]} 32. b3 {[%clk 0:00:35]}  a5 {[%clk 0:00:18]} 33. Kb2 {[%clk 0:00:33]}  a4 {[%clk 0:00:18]} 34. Re3 {[%clk 0:00:29]}  Qd6 {[%clk 0:00:13]} 35. bxa4 {[%clk 0:00:24]}  Qd7 {[%clk 0:00:11]} 36. a5 {[%clk 0:00:21]}  Rf5 {[%clk 0:00:06]} 37. a6 {[%clk 0:00:19]}  Qc8 {[%clk 0:00:05]} 38. a7 {[%clk 0:00:18]}  Qb7+ {[%clk 0:00:05]} 39. Rb3 {[%clk 0:00:18]} 1-0


[Site "https://www.chess.com"]

[Event "Titled Tuesday Blitz November 29 Early 2022"]
[White "Roque Sola, Gisela"]
[Black "Iinuma, Paul Y"]
[WhiteFideId "5120241"]
[BlackFideId "2031809"]
[WhiteElo "1961"]
[BlackElo "2066"]
[Result "0-1"]
[Round "07"]
[TimeControl "180+1"]
[Date "2022.11.30"]
[WhiteClock "0:00:11"]
[BlackClock "0:00:37"]

1. e4 {[%clk 0:03:00]}  g6 {[%clk 0:02:56]} 2. d4 {[%clk 0:02:59]}  Bg7 {[%clk 0:02:57]} 3. Be3 {[%clk 0:02:59]}  d6 {[%clk 0:02:58]} 4. Qd2 {[%clk 0:02:58]}  Nf6 {[%clk 0:02:59]} 5. Nc3 {[%clk 0:02:58]}  Ng4 {[%clk 0:02:58]} 6. Bg5 {[%clk 0:02:57]}  h6 {[%clk 0:02:58]} 7. Bh4 {[%clk 0:02:56]}  g5 {[%clk 0:02:57]} 8. Bg3 {[%clk 0:02:55]}  Nc6 {[%clk 0:02:58]} 9. f3 {[%clk 0:02:54]}  Nf6 {[%clk 0:02:58]} 10. Bc4 {[%clk 0:02:49]}  Nh5 {[%clk 0:02:58]} 11. Bf2 {[%clk 0:02:48]}  e5 {[%clk 0:02:59]} 12. Nge2 {[%clk 0:02:44]}  a6 {[%clk 0:02:57]} 13. O-O-O {[%clk 0:02:32]}  Bd7 {[%clk 0:02:47]} 14. h4 {[%clk 0:02:26]}  g4 {[%clk 0:02:43]} 15. f4 {[%clk 0:02:14]}  g3 {[%clk 0:02:31]} 16. Be3 {[%clk 0:01:55]}  Bg4 {[%clk 0:02:28]} 17. dxe5 {[%clk 0:01:42]}  dxe5 {[%clk 0:02:27]} 18. Qxd8+ {[%clk 0:01:40]}  Rxd8 {[%clk 0:02:27]} 19. Rxd8+ {[%clk 0:01:39]}  Nxd8 {[%clk 0:02:27]} 20. fxe5 {[%clk 0:01:21]}  b5 {[%clk 0:02:26]} 21. Bd3 {[%clk 0:01:17]}  Ne6 {[%clk 0:02:17]} 22. a4 {[%clk 0:01:12]}  c6 {[%clk 0:02:16]} 23. axb5 {[%clk 0:01:11]}  axb5 {[%clk 0:02:17]} 24. Nd4 {[%clk 0:01:07]}  Nxd4 {[%clk 0:02:02]} 25. Bxd4 {[%clk 0:01:08]}  Nf4 {[%clk 0:02:03]} 26. Be3 {[%clk 0:01:02]}  Nxg2 {[%clk 0:01:57]} 27. Bc5 {[%clk 0:00:59]}  Bxe5 {[%clk 0:01:43]} 28. Nd1 {[%clk 0:00:49]}  Nf4 {[%clk 0:01:16]} 29. Rg1 {[%clk 0:00:44]}  Ne6 {[%clk 0:01:13]} 30. Be3 {[%clk 0:00:42]}  Bf3 {[%clk 0:01:05]} 31. Bf1 {[%clk 0:00:37]}  Bxe4 {[%clk 0:01:01]} 32. Bh3 {[%clk 0:00:37]}  Rg8 {[%clk 0:00:50]} 33. Bxh6 {[%clk 0:00:33]}  Nd4 {[%clk 0:00:50]} 34. Nc3 {[%clk 0:00:23]}  f5 {[%clk 0:00:46]} 35. Be3 {[%clk 0:00:17]}  Nf3 {[%clk 0:00:44]} 36. Rg2 {[%clk 0:00:17]}  b4 {[%clk 0:00:43]} 37. Nxe4 {[%clk 0:00:15]}  fxe4 {[%clk 0:00:44]} 38. h5 {[%clk 0:00:15]}  Nh4 {[%clk 0:00:42]} 39. Rg1 {[%clk 0:00:14]}  g2 {[%clk 0:00:42]} 40. Be6 {[%clk 0:00:14]}  Rf8 {[%clk 0:00:38]} 41. Bc4 {[%clk 0:00:13]}  Bh2 {[%clk 0:00:37]} 42. h6 {[%clk 0:00:10]}  Bxg1 {[%clk 0:00:36]} 43. Bxg1 {[%clk 0:00:11]}  Rf1+ {[%clk 0:00:36]} 44. Kd2 {[%clk 0:00:11]}  Rxg1 {[%clk 0:00:37]} 45. h7 {[%clk 0:00:11]}  Ng6 {[%clk 0:00:37]} 0-1


[Site "https://www.chess.com"]